fUSD/lending_fUSD_20240107
["ID","MTS","AMOUNT","RATE_DAILY","PERIOD"]
[310657254,1704637867282,-574.49,0.00022798,2]
[310657255,1704637867295,-500.0,0.00022798,2]
[310657256,1704637867304,-500.0,0.00022798,2]
[310657257,1704637867314,-500.0,0.00022798,2]
[310657258,1704637867325,-597.18,0.00022798,2]
[310657259,1704637867336,-500.0,0.00022798,2]
[310657260,1704637867345,-500.0,0.00022798,2]
[310657261,1704637867355,-500.0,0.00022798,2]
[310657262,1704637867365,-500.0,0.00022798,2]
[310657263,1704637867376,-405.09799834,0.00022798,2]
[310657264,1704637867386,-500.0,0.00022798,2]
[310657265,1704637867395,-542.23,0.00022798,2]
[310657266,1704637867405,-535.87,0.00022798,2]
[310657267,1704637867415,-500.0,0.00022798,2]
[310657268,1704637867425,-500.0,0.00022798,2]
[310657269,1704637867437,-500.0,0.00022798,2]
[310657270,1704637867447,-500.0,0.00022798,2]
[310657271,1704637867456,-500.0,0.00022798,2]
[310657272,1704637867465,-530.98189548,0.00022798,2]
[310657273,1704637867475,-500.0,0.00022798,2]
[310657274,1704637867485,-500.0,0.00022798,2]
[310657275,1704637867494,-512.83638274,0.00022798,2]
[310657276,1704637867504,-500.0,0.00022798,2]
[310657277,1704637867514,-500.0,0.00022798,2]
[310657278,1704637867523,-500.0,0.00022798,2]
[310657279,1704637867533,-500.0,0.00022798,2]
[310657280,1704637867545,-500.0,0.00022798,2]
[310657281,1704637867554,-500.0,0.00022798,2]
[310657282,1704637867564,-500.0,0.00022803,2]
[310657283,1704637867575,-500.0,0.00022812,2]
[310657284,1704637867609,-500.0,0.00022821,2]
[310657285,1704637867619,-500.0,0.0002283,2]
[310657286,1704637867629,-500.0,0.00022838,2]
[310657287,1704637867639,-500.0,0.00022847,2]
[310657288,1704637867649,-500.0,0.00022856,2]
[310657289,1704637867659,-500.0,0.00022865,2]
[310657290,1704637867669,-500.0,0.00022874,2]
[310657291,1704637867679,-400.86,0.00022878,2]
[310657292,1704637867689,-500.0,0.00022882,2]
[310657293,1704637867699,-500.0,0.00022891,2]
[310657294,1704637867708,-500.0,0.00022896,2]
[310657295,1704637867719,-307.78,0.00022896,2]
[310657296,1704637867729,-613.75,0.00022896,2]
[310657297,1704637867739,-500.0,0.00022896,2]
[310657298,1704637867749,-3039.55,0.00022896,2]
[310657299,1704637867759,-500.0,0.00022896,2]
[310657300,1704637867769,-500.0,0.00022896,2]
[310657301,1704637867778,-517.06,0.00022896,2]
[310657302,1704637867789,-500.0,0.00022896,2]
[310657303,1704637867800,-500.0,0.00022896,2]
[310657304,1704637867810,-500.0,0.00022896,2]
[310657305,1704637867821,-500.0,0.00022896,2]
[310657306,1704637867831,-2391.46,0.00022896,2]
[310657307,1704637867842,-544.16,0.00022896,2]
[310657308,1704637867853,-335.56928727,0.00022896,2]
[310657309,1704637867862,-500.0,0.00022896,2]
[310657310,1704637867871,-284.11222598,0.00022896,2]
[310657311,1704637868033,-1144.28,0.00022896,2]
[310657312,1704637868045,-603.59,0.00022896,2]
[310657313,1704637868057,-500.0,0.00022896,2]
[310657314,1704637868067,-506.43,0.00022896,2]
[310657315,1704637868077,-1704.56212091,0.00022897,2]
[310657316,1704637868088,-262.94748596,0.00022897,2]
[310657317,1704637868098,-161.34210277,0.00022897,2]
[310657318,1704637868108,-485.37327303,0.00022897,2]
[310657319,1704637868118,-155.0,0.00022897,2]
[310657320,1704637868127,-362.50194875,0.00022897,2]
[310657321,1704637868137,-155.43819632,0.00022897,2]
[310657322,1704637868147,-317.68758824,0.00022897,2]
[310657323,1704637868157,-281.1936198,0.00022897,2]
[310657324,1704637868167,-155.0,0.00022897,2]
[310657325,1704637868178,-196.21358155,0.00022897,2]
[310657326,1704637868189,-155.12802974,0.00022897,2]
[310657327,1704637868199,-259.45999404,0.00022897,2]
[310657328,1704637868209,-155.43428838,0.00022897,2]
[310657329,1704637868219,-513.70005074,0.00022897,2]
[310657330,1704637868229,-11639.95476372,0.00022897,2]
[310657331,1704637868238,-304.84509175,0.00022897,2]
[310657332,1704637868248,-181.81200294,0.00022897,2]
[310657333,1704637868258,-206.62196093,0.00022897,2]
[310657334,1704637868270,-158.19423441,0.00022897,2]
[310657335,1704637868281,-193.08532681,0.00022897,2]
[310657336,1704637868291,-161.0682666,0.00022897,2]
[310657337,1704637868300,-159.4438917,0.00022897,2]
[310657338,1704637868310,-155.0,0.00022897,2]
[310657339,1704637868319,-214.08376804,0.00022897,2]
[310657340,1704637868328,-155.0,0.00022897,2]
[310657341,1704637868339,-244.69236335,0.00022897,2]
[310657342,1704637868349,-155.47295348,0.00022897,2]
[310657343,1704637868358,-298.35072791,0.00022897,2]
[310657344,1704637868367,-235.96282679,0.00022897,2]
[310657345,1704637868378,-171.8392514,0.00022897,2]
[310657346,1704637868388,-234.53276279,0.00022897,2]
[310657347,1704637868399,-500.0,0.00022897,2]
[310657348,1704637868409,-255.4,0.00022897,2]
[310657349,1704637868419,-196.27,0.00022897,2]
[310657350,1704637868428,-500.0,0.00022897,2]
[310657351,1704637868439,-500.0,0.00022897,2]
[310657352,1704637868450,-500.0,0.00022897,2]
[310657353,1704637868460,-500.0,0.00022897,2]
[310657354,1704637868469,-500.0,0.00022897,2]
[310657355,1704637868478,-500.0,0.00022897,2]
[310657356,1704637868488,-500.0,0.00022897,2]
[310657357,1704637868499,-602.03,0.00022897,2]
[310657358,1704637868509,-500.0,0.00022897,2]
[310657359,1704637868518,-1551.04,0.00022897,2]
[310657360,1704637868528,-4259.52,0.00022897,2]
[310657361,1704637868538,-258.56,0.00022897,2]
[310657362,1704637868549,-500.0,0.00022897,2]
[310657363,1704637868558,-972.61,0.00022897,2]
[310657364,1704637868567,-575.24,0.00022897,2]
[310657365,1704637868579,-7305.55,0.00022897,2]
[310657366,1704637868588,-2016.6,0.00022897,2]
[310657367,1704637868598,-500.0,0.00022897,2]
[310657368,1704637868608,-500.0,0.00022897,2]
[310657369,1704637868618,-500.0,0.00022897,2]
[310657370,1704637868627,-440.91,0.00022897,2]
[310657371,1704637868637,-1681.68,0.00022897,2]
[310657372,1704637868648,-500.0,0.00022897,2]
[310657373,1704637868658,-574.18,0.00022897,2]
[310657374,1704637868667,-500.0,0.00022897,2]
[310657375,1704637868677,-500.0,0.00022897,2]
[310657376,1704637868686,-529.37,0.00022897,2]
[310657377,1704637868698,-394.8912287,0.00022897,2]
[310657378,1704637868708,-500.0,0.00022897,2]
[310657379,1704637868720,-500.0,0.00022897,2]
[310657380,1704637868729,-500.0,0.00022897,2]
[310657381,1704637868739,-653.0,0.00022897,2]
[310657382,1704637868749,-1024.89,0.00022897,2]
[310657383,1704637868759,-500.0,0.00022897,2]
[310657384,1704637868769,-500.0,0.00022897,2]
[310657385,1704637868779,-857.86,0.00022897,2]
[310657386,1704637868789,-500.0,0.00022897,2]
[310657387,1704637868799,-1017.17,0.00022897,2]
[310657388,1704637868809,-1027.53,0.00022897,2]
[310657389,1704637868818,-791.43,0.00022897,2]
[310657390,1704637868828,-819.35,0.00022897,2]
[310657391,1704637868837,-500.0,0.00022897,2]
[310657392,1704637868847,-781.73,0.00022897,2]
[310657393,1704637868857,-3190.97,0.00022897,2]
[310657394,1704637868867,-1482.03,0.00022897,2]
[310657395,1704637868876,-582.89,0.00022897,2]
[310657396,1704637868886,-628.85,0.00022897,2]
[310657397,1704637868895,-500.0,0.00022897,2]
[310657398,1704637868905,-500.0,0.00022897,2]
[310657399,1704637868915,-500.0,0.00022897,2]
[310657400,1704637868925,-641.83,0.00022897,2]
[310657401,1704637868935,-937.95,0.00022897,2]
[310657402,1704637868945,-155.0,0.00022898,2]
[310657403,1704637868955,-175.97422128,0.00022898,2]
[310657404,1704637868965,-503.15,0.00022898,2]
[310657405,1704637868974,-500.0,0.00022898,2]
[310657406,1704637868983,-500.0,0.00022898,2]
[310657407,1704637868993,-518.69160481,0.00022898,2]
[310657408,1704637869002,-500.0,0.00022898,2]
[310657409,1704637869011,-500.0,0.00022898,2]
[310657410,1704637869021,-500.0,0.00022898,2]
[310657411,1704637869030,-573.11,0.00022898,2]
[310657412,1704637869039,-507.40904641,0.00022898,2]
[310657413,1704637869050,-500.0,0.00022898,2]
[310657414,1704637869060,-500.0,0.00022898,2]
[310657415,1704637869070,-500.0,0.00022898,2]
[310657416,1704637869080,-532.72176653,0.00022898,2]
[310657417,1704637869089,-500.0,0.00022898,2]
[310657418,1704637869098,-500.0,0.00022898,2]
[310657419,1704637869112,-500.0,0.00022898,2]
[310657420,1704637869121,-500.0,0.00022898,2]
[310657421,1704637869131,-500.0,0.00022898,2]
[310657422,1704637869142,-500.0,0.00022898,2]
[310657423,1704637869151,-500.0,0.00022898,2]
[310657424,1704637869164,-500.0,0.00022898,2]
[310657425,1704637869173,-500.0,0.00022898,2]
[310657426,1704637869182,-500.0,0.00022898,2]
[310657427,1704637869192,-500.0,0.00022898,2]
[310657428,1704637869201,-500.0,0.00022898,2]
[310657429,1704637869211,-500.0,0.00022898,2]
[310657430,1704637869220,-498.66000873,0.00022898,2]
[310657431,1704637869229,-342.97444444,0.00022898,2]
[310657432,1704637869238,-500.0,0.00022898,2]
[310657433,1704637869248,-500.0,0.00022898,2]
[310657434,1704637869257,-500.0,0.00022898,2]
[310657435,1704637869266,-500.0,0.00022898,2]
[310657436,1704637869275,-500.0,0.00022898,2]
[310657437,1704637869285,-503.22302331,0.00022898,2]
[310657438,1704637869295,-500.0,0.00022898,2]
[310657439,1704637869308,-500.0,0.00022898,2]
[310657440,1704637869318,-500.0,0.00022898,2]
[310657441,1704637869327,-500.0,0.00022898,2]
[310657442,1704637869338,-500.0,0.00022898,2]
[310657443,1704637869350,-500.0,0.00022898,2]
[310657444,1704637869359,-500.0,0.00022898,2]
[310657445,1704637869367,-500.0,0.00022898,2]
[310657446,1704637869380,-500.0,0.00022898,2]
[310657447,1704637869390,-500.0,0.00022898,2]
[310657448,1704637869399,-1000.0,0.00022898,2]
[310657449,1704637869408,-500.0,0.00022898,2]
[310657450,1704637869418,-500.0,0.00022898,2]
[310657451,1704637869427,-500.0,0.00022898,2]
[310657452,1704637869436,-500.0,0.00022898,2]
[310657453,1704637869445,-500.0,0.00022898,2]
[310657454,1704637869456,-500.0,0.00022898,2]
[310657455,1704637869465,-500.0,0.00022898,2]
[310657456,1704637869474,-500.0,0.00022898,2]
[310657457,1704637869483,-506.82845756,0.00022898,2]
[310657458,1704637869492,-500.0,0.00022898,2]
[310657459,1704637869501,-500.0,0.00022898,2]
[310657460,1704637869510,-211.05564037,0.00022898,2]
[310657461,1704637869519,-510.8938792,0.00022898,2]
[310657462,1704637869528,-515.75795379,0.00022898,2]
[310657463,1704637869538,-191.2,0.00022898,2]
[310657464,1704637869548,-558.13,0.00022898,2]
[310657465,1704637869557,-500.0,0.00022898,2]
[310657466,1704637869567,-618.64,0.00022898,2]
[310657467,1704637869576,-500.0,0.00022898,2]
[310657468,1704637869585,-500.0,0.00022898,2]
[310657469,1704637869595,-512.01467835,0.00022898,2]
[310657470,1704637869604,-500.0,0.00022898,2]
[310657471,1704637869614,-509.14205453,0.00022898,2]
[310657472,1704637869624,-561.46706513,0.00022898,2]
[310657473,1704637869633,-504.79608568,0.00022898,2]
[310657474,1704637869644,-500.0,0.00022898,2]
[310657475,1704637869653,-500.0,0.00022898,2]
[310657476,1704637869663,-500.0,0.00022898,2]
[310657477,1704637869673,-298.97,0.00022898,2]
[310657478,1704637869683,-500.0,0.00022898,2]
[310657479,1704637869694,-163.96954485,0.00022898,2]
[310657480,1704637869703,-559.25464952,0.00022898,2]
[310657481,1704637869713,-500.0,0.00022898,2]
[310657482,1704637869722,-500.0,0.00022898,2]
[310657483,1704637869732,-500.0,0.00022898,2]
[310657484,1704637869742,-500.0,0.00022898,2]
[310657485,1704637869752,-230.87698552,0.00022898,2]
[310657486,1704637869762,-356.6395598,0.00022898,2]
[310657487,1704637869771,-500.0,0.00022898,2]
[310657488,1704637869780,-554.48,0.00022898,2]
[310657489,1704637869790,-500.0,0.00022898,2]
[310657490,1704637869801,-500.0,0.00022898,2]
[310657491,1704637869810,-506.09519397,0.00022898,2]
[310657492,1704637869819,-515.87094098,0.00022898,2]
[310657493,1704637869829,-500.0,0.00022898,2]
[310657494,1704637869838,-500.0,0.00022898,2]
[310657495,1704637869852,-500.0,0.00022898,2]
[310657496,1704637869861,-501.52672186,0.00022898,2]
[310657497,1704637869871,-500.0,0.00022898,2]
[310657498,1704637869882,-504.51678666,0.00022898,2]
[310657499,1704637870002,-512.19309148,0.00022898,2]
[310657500,1704637870011,-523.48025631,0.00022898,2]
[310657501,1704637870021,-500.0,0.00022898,2]
[310657502,1704637870031,-522.79740961,0.00022898,2]
[310657503,1704637870042,-516.09268703,0.00022898,2]
[310657504,1704637870052,-500.0,0.00022898,2]
[310657505,1704637870061,-500.0,0.00022898,2]
[310657506,1704637870071,-500.0,0.00022898,2]
[310657507,1704637870083,-500.0,0.00022898,2]
[310657508,1704637870092,-188.88783293,0.00022898,2]
[310657509,1704637870101,-500.0,0.00022898,2]
[310657510,1704637870110,-500.0,0.00022898,2]
[310657511,1704637870119,-500.0,0.00022898,2]
[310657512,1704637870128,-504.58684381,0.00022898,2]
[310657513,1704637870137,-497.0,0.00022898,2]
[310657514,1704637870146,-500.0,0.00022898,2]
[310657515,1704637870158,-500.0,0.00022898,2]
[310657516,1704637870167,-500.0,0.00022898,2]
[310657517,1704637870176,-500.0,0.00022898,2]
[310657518,1704637870185,-500.0,0.00022898,2]
[310657519,1704637870194,-500.0,0.00022898,2]
[310657520,1704637870203,-507.25867779,0.00022898,2]
[310657521,1704637870212,-343.41047183,0.00022898,2]
[310657522,1704637870222,-500.0,0.00022898,2]
[310657523,1704637870231,-593.91318038,0.00022898,2]
[310657524,1704637870240,-508.59842941,0.00022898,2]
[310657525,1704637870253,-500.0,0.00022898,2]
[310657526,1704637870261,-505.64391384,0.00022898,2]
[310657527,1704637870270,-500.0,0.00022898,2]
[310657528,1704637870280,-500.0,0.00022898,2]
[310657529,1704637870289,-500.0,0.00022898,2]
[310657530,1704637870300,-500.0,0.00022898,2]
[310657531,1704637870310,-532.7681151,0.00022898,2]
[310657532,1704637870319,-500.0,0.00022898,2]
[310657533,1704637870329,-500.0,0.00022898,2]
[310657534,1704637870340,-533.15216983,0.00022898,2]
[310657535,1704637870349,-500.0,0.00022898,2]
[310657536,1704637870359,-500.0,0.00022898,2]
[310657537,1704637870369,-500.0,0.00022898,2]
[310657538,1704637870379,-500.0,0.00022898,2]
[310657539,1704637870390,-507.64275849,0.00022898,2]
[310657540,1704637870399,-500.0,0.00022898,2]
[310657541,1704637870409,-500.0,0.00022898,2]
[310657542,1704637870418,-500.0,0.00022898,2]
[310657543,1704637870428,-500.0,0.00022898,2]
[310657544,1704637870437,-500.0,0.00022898,2]
[310657545,1704637870446,-500.0,0.00022898,2]
[310657546,1704637870455,-500.0,0.00022898,2]
[310657547,1704637870465,-500.0,0.00022898,2]
[310657548,1704637870474,-511.75993519,0.00022898,2]
[310657549,1704637870484,-500.0,0.00022898,2]
[310657550,1704637870493,-500.0,0.00022898,2]
[310657551,1704637870502,-500.0,0.00022898,2]
[310657552,1704637870513,-500.0,0.00022898,2]
[310657553,1704637870522,-500.0,0.00022898,2]
[310657554,1704637870531,-500.0,0.00022898,2]
[310657555,1704637870541,-505.57586521,0.00022898,2]
[310657556,1704637870552,-500.0,0.00022898,2]
[310657557,1704637870561,-500.0,0.00022898,2]
[310657558,1704637870570,-500.0,0.00022898,2]
[310657559,1704637870579,-500.0,0.00022898,2]
[310657560,1704637870589,-500.0,0.00022898,2]
[310657561,1704637870598,-500.0,0.00022898,2]
[310657562,1704637870607,-517.58085307,0.00022898,2]
[310657563,1704637870617,-500.0,0.00022898,2]
[310657564,1704637870628,-500.0,0.00022898,2]
[310657565,1704637870637,-500.0,0.00022898,2]
[310657566,1704637870647,-500.0,0.00022898,2]
[310657567,1704637870657,-500.0,0.00022898,2]
[310657568,1704637870667,-500.0,0.00022898,2]
[310657569,1704637870676,-500.0,0.00022898,2]
[310657570,1704637870686,-637.57212863,0.00022898,2]
[310657571,1704637870695,-500.0,0.00022898,2]
[310657572,1704637870705,-500.0,0.00022898,2]
[310657573,1704637870714,-519.63060631,0.00022898,2]
[310657574,1704637870724,-500.0,0.00022898,2]
[310657575,1704637870733,-504.39462403,0.00022898,2]
[310657576,1704637870742,-500.0,0.00022898,2]
[310657577,1704637870751,-500.0,0.00022898,2]
[310657578,1704637870761,-500.0,0.00022898,2]
[310657579,1704637870770,-500.0,0.00022898,2]
[310657580,1704637870779,-500.0,0.00022898,2]
[310657581,1704637870788,-500.0,0.00022898,2]
[310657582,1704637870798,-500.0,0.00022898,2]
[310657583,1704637870807,-500.0,0.00022898,2]
[310657584,1704637870816,-500.0,0.00022898,2]
[310657585,1704637870826,-500.0,0.00022898,2]
[310657586,1704637870838,-500.0,0.00022898,2]
[310657587,1704637870861,-500.0,0.00022898,2]
[310657588,1704637870877,-531.04266218,0.00022898,2]
[310657589,1704637870895,-500.0,0.00022898,2]
[310657590,1704637870914,-246.37943399,0.00022898,2]
[310657591,1704637870929,-500.0,0.00022898,2]
[310657592,1704637870946,-500.0,0.00022898,2]
[310657593,1704637870963,-430.23938432,0.00022898,2]
[310657594,1704637870980,-500.0,0.00022898,2]
[310657595,1704637870996,-500.0,0.00022898,2]
[310657596,1704637871012,-500.0,0.00022898,2]
[310657597,1704637871030,-500.0,0.00022898,2]
[310657598,1704637871050,-500.0,0.00022898,2]
[310657599,1704637871062,-500.0,0.00022898,2]
[310657600,1704637871078,-550.98647408,0.00022898,2]
[310657601,1704637871094,-514.52762202,0.00022898,2]
[310657602,1704637871107,-500.0,0.00022898,2]
[310657603,1704637871121,-577.77680589,0.00022898,2]
[310657604,1704637871135,-248.85730927,0.00022898,2]
[310657605,1704637871149,-240.75515005,0.00022898,2]
[310657606,1704637871163,-500.0,0.00022898,2]
[310657607,1704637871177,-612.82669549,0.00022898,2]
[310657608,1704637871192,-505.15589729,0.00022898,2]
[310657609,1704637871206,-503.868514,0.00022898,2]
[310657610,1704637871220,-500.0,0.00022898,2]
[310657611,1704637871234,-500.0,0.00022898,2]
[310657612,1704637871250,-500.0,0.00022898,2]
[310657613,1704637871265,-500.0,0.00022898,2]
[310657614,1704637871279,-500.0,0.00022898,2]
[310657615,1704637871295,-500.0,0.00022898,2]
[310657616,1704637871309,-500.0,0.00022898,2]
[310657617,1704637871324,-500.0,0.00022898,2]
[310657618,1704637871340,-500.0,0.00022898,2]
[310657619,1704637871355,-500.0,0.00022898,2]
[310657620,1704637871370,-500.0,0.00022898,2]
[310657621,1704637871384,-500.0,0.00022898,2]
[310657622,1704637871399,-500.0,0.00022898,2]
[310657623,1704637871413,-500.0,0.00022898,2]
[310657624,1704637871427,-500.0,0.00022898,2]
[310657625,1704637871441,-500.0,0.00022898,2]
[310657626,1704637871455,-500.0,0.00022898,2]
[310657627,1704637871469,-500.0,0.00022898,2]
[310657628,1704637871484,-500.0,0.00022898,2]
[310657629,1704637871498,-607.42630559,0.00022898,2]
[310657630,1704637871513,-500.0,0.00022898,2]
[310657631,1704637871527,-500.0,0.00022898,2]
[310657632,1704637871541,-500.0,0.00022898,2]
[310657633,1704637871557,-510.03539783,0.00022898,2]
[310657634,1704637871571,-500.0,0.00022898,2]
[310657635,1704637871586,-500.0,0.00022898,2]
[310657636,1704637871600,-500.0,0.00022898,2]
[310657637,1704637871615,-500.0,0.00022898,2]
[310657638,1704637871630,-500.0,0.00022898,2]
[310657639,1704637871645,-500.0,0.00022898,2]
[310657640,1704637871659,-516.10641481,0.00022898,2]
[310657641,1704637871674,-500.0,0.00022898,2]
[310657642,1704637871688,-500.0,0.00022898,2]
[310657643,1704637871704,-500.0,0.00022898,2]
[310657644,1704637871719,-500.0,0.00022898,2]
[310657645,1704637871733,-500.0,0.00022898,2]
[310657646,1704637871743,-500.0,0.00022898,2]
[310657647,1704637871752,-500.0,0.00022898,2]
[310657648,1704637871762,-500.0,0.00022898,2]
[310657649,1704637871772,-255.57733297,0.00022898,2]
[310657650,1704637871782,-507.50908849,0.00022898,2]
[310657651,1704637871791,-500.0,0.00022898,2]
[310657652,1704637871800,-500.0,0.00022898,2]
[310657653,1704637871810,-500.0,0.00022898,2]
[310657654,1704637871820,-500.0,0.00022898,2]
[310657655,1704637871830,-577.13855113,0.00022898,2]
[310657656,1704637871839,-500.0,0.00022898,2]
[310657657,1704637871848,-500.0,0.00022898,2]
[310657658,1704637871858,-500.0,0.00022898,2]
[310657659,1704637871867,-500.0,0.00022898,2]
[310657660,1704637871876,-500.0,0.00022898,2]
[310657661,1704637871887,-500.0,0.00022898,2]
[310657662,1704637871898,-500.0,0.00022898,2]
[310657663,1704637871909,-500.0,0.00022898,2]
[310657664,1704637871920,-500.0,0.00022898,2]
[310657665,1704637871930,-500.0,0.00022898,2]
[310657666,1704637871940,-500.0,0.00022898,2]
[310657667,1704637871951,-500.0,0.00022898,2]
[310657668,1704637871961,-500.0,0.00022898,2]
[310657669,1704637871971,-518.69660775,0.00022898,2]
[310657670,1704637871980,-500.0,0.00022898,2]
[310657671,1704637871990,-500.0,0.00022898,2]
[310657672,1704637872000,-500.0,0.00022898,2]
[310657673,1704637872290,-500.0,0.00022898,2]
[310657674,1704637872313,-500.0,0.00022898,2]
[310657675,1704637872326,-500.0,0.00022898,2]
[310657676,1704637872336,-500.0,0.00022898,2]
[310657677,1704637872346,-500.0,0.00022898,2]
[310657678,1704637872357,-500.0,0.00022898,2]
[310657679,1704637872368,-500.0,0.00022898,2]
[310657680,1704637872377,-240.64789136,0.00022898,2]
[310657681,1704637872386,-500.0,0.00022898,2]
[310657682,1704637872396,-262.39609069,0.00022898,2]
[310657683,1704637872405,-372.45698487,0.00022898,2]
[310657684,1704637872415,-514.41991375,0.00022898,2]
[310657685,1704637872425,-500.0,0.00022898,2]
[310657686,1704637872436,-500.0,0.00022898,2]
[310657687,1704637872445,-500.0,0.00022898,2]
[310657688,1704637872454,-500.0,0.00022898,2]
[310657689,1704637872463,-500.0,0.00022898,2]
[310657690,1704637872473,-500.0,0.00022898,2]
[310657691,1704637872483,-500.0,0.00022898,2]
[310657692,1704637872492,-500.0,0.00022898,2]
[310657693,1704637872502,-500.0,0.00022898,2]
[310657694,1704637872511,-500.0,0.00022898,2]
[310657695,1704637872521,-500.0,0.00022898,2]
[310657696,1704637872531,-500.0,0.00022898,2]
[310657697,1704637872542,-500.0,0.00022898,2]
[310657698,1704637872551,-500.0,0.00022898,2]
[310657699,1704637872561,-500.0,0.00022898,2]
[310657700,1704637872570,-500.0,0.00022898,2]
[310657701,1704637872580,-500.0,0.00022898,2]
[310657702,1704637872590,-500.0,0.00022898,2]
[310657703,1704637872599,-500.0,0.00022898,2]
[310657704,1704637872609,-500.0,0.00022898,2]
[310657705,1704637872619,-500.0,0.00022898,2]
[310657706,1704637872629,-500.0,0.00022898,2]
[310657707,1704637872639,-500.0,0.00022898,2]
[310657708,1704637872650,-500.0,0.00022898,2]
[310657709,1704637872659,-500.0,0.00022898,2]
[310657710,1704637872669,-500.0,0.00022898,2]
[310657711,1704637872678,-500.0,0.00022898,2]
[310657712,1704637872690,-500.0,0.00022898,2]
[310657713,1704637872701,-500.0,0.00022898,2]
[310657714,1704637872713,-500.0,0.00022898,2]
[310657715,1704637872723,-500.0,0.00022898,2]
[310657716,1704637872733,-500.0,0.00022898,2]
[310657717,1704637872743,-500.0,0.00022898,2]
[310657718,1704637872754,-500.0,0.00022898,2]
[310657719,1704637872765,-500.0,0.00022898,2]
[310657720,1704637872777,-500.0,0.00022898,2]
[310657721,1704637872788,-583.0047296,0.00022898,2]
[310657722,1704637872797,-543.52701213,0.00022898,2]
[310657723,1704637872807,-500.0,0.00022898,2]
[310657724,1704637872817,-500.0,0.00022898,2]
[310657725,1704637872827,-500.0,0.00022898,2]
[310657726,1704637872837,-500.0,0.00022898,2]
[310657727,1704637872847,-500.0,0.00022898,2]
[310657728,1704637872857,-515.69453021,0.00022898,2]
[310657729,1704637872867,-500.0,0.00022898,2]
[310657730,1704637872876,-500.0,0.00022898,2]
[310657731,1704637872885,-500.0,0.00022898,2]
[310657732,1704637872895,-523.30889379,0.00022898,2]
[310657733,1704637872906,-500.0,0.00022898,2]
[310657734,1704637872917,-500.0,0.00022898,2]
[310657735,1704637872927,-500.0,0.00022898,2]
[310657736,1704637872938,-500.0,0.00022898,2]
[310657737,1704637872951,-514.72977256,0.00022898,2]
[310657738,1704637872961,-500.0,0.00022898,2]
[310657739,1704637872972,-500.0,0.00022898,2]
[310657740,1704637872983,-500.0,0.00022898,2]
[310657741,1704637872994,-500.0,0.00022898,2]
[310657742,1704637873003,-500.0,0.00022898,2]
[310657743,1704637873013,-500.0,0.00022898,2]
[310657744,1704637873024,-500.0,0.00022898,2]
[310657745,1704637873035,-513.62159394,0.00022898,2]
[310657746,1704637873047,-500.0,0.00022898,2]
[310657747,1704637873060,-500.0,0.00022898,2]
[310657748,1704637873072,-500.0,0.00022898,2]
[310657749,1704637873083,-500.0,0.00022898,2]
[310657750,1704637873094,-500.0,0.00022898,2]
[310657751,1704637873106,-500.0,0.00022898,2]
[310657752,1704637873117,-500.0,0.00022898,2]
[310657753,1704637873127,-500.0,0.00022898,2]